Cogmind - Beta 15 @@@ ROGUE MODE // 2025.07.27 @ 15:55:45 Player: cingulata Result: Self-destructed Performance ------------- Evolutions (1) 500 Regions Visited (4) 800 Robots Destroyed (50) 250 Value Destroyed (1311) 1311 Prototype IDs (3) 60 Alien Tech Used (0) 0 Bonus (0) 0 TOTAL SCORE: 2921 Bonus ------- None Cogmind --------- Core Integrity 192/400 Matter 259/300 Energy 265/265 System Corruption 0% Temperature Cool (0) Movement Core (1550) Ox30 Location -9/Mines Parts ------- > --- POWER (1) -------- Improved Ion Engine > --- PROPULSION (3) --- Light Treads > --- UTILITY (3) ------ Huge Storage Unit Propulsion Shielding > --- WEAPON (2) ------- Light Cannon > --- INVENTORY (25) --- Ion Engine Improved Ion Engine Light Nuclear Core Light Treads Wheel Medium Matter Pod (100) Structural Scanner Sensor Array Seismic Detector Light Armor Plating Light Armor Plating Hardened Light Armor Plating Shield Generator Spread Laser Particle Cannon Light Assault Rifle Improved Assault Rifle Improved Assault Rifle EMP Blaster Rocket Launcher Rocket Launcher Datajack Mining Claw Peak State ------------ > --- POWER ------------ Improved Ion Engine > --- PROPULSION ------- Light Treads Light Treads Wheel > --- UTILITY ---------- Huge Storage Unit Structural Scanner Seismic Detector > --- WEAPON ----------- Improved Assault Rifle Light Cannon > --- INVENTORY -------- Ion Engine Ion Engine Improved Ion Engine Improved Ion Engine Light Treads Wheel Wheel Medium Matter Pod Sensor Array Propulsion Shielding Propulsion Shielding Weapon Shielding Shield Generator Spread Laser Beam Cannon Beam Cannon Beam Cannon Particle Cannon Light Assault Rifle Light Assault Rifle Light Cannon Rocket Launcher Rocket Launcher Datajack Mining Claw [Rating: 15] Favorites ----------- Power Improved Ion Engine Engine Improved Ion Engine Propulsion Light Treads Treads Light Treads Leg Aluminum Leg Wheel Wheel Utility Huge Storage Unit Device Seismic Detector Storage Huge Storage Unit Protection Propulsion Shielding Weapon Light Cannon Energy Cannon Beam Cannon Ballistic Gun Light Assault Rifle Ballistic Cannon Light Cannon Launcher EMP Blaster Special Weapon Mining Laser Slashing Weapon Mining Claw Build | -11 -10 -10 -9 -9 ------- Run | Yrd Mat Min Mat Min Slots Evolved 2 | . . . 2 . Power . | . . . . . Propulsion 1 | . . . 1 . Utility 1 | . . . 1 . Weapon . | . . . . . Parts Attached 38 | 1 18 2 16 1 Power 4 | . 2 . 2 . Engine 4 | . 2 . 2 . Core . | . . . . . Reactor . | . . . . . Propulsion 12 | . 6 . 6 . Treads 6 | . 2 . 4 . Leg 3 | . 3 . . . Wheel 3 | . 1 . 2 . Hover . | . . . . . Flight . | . . . . . Utility 8 | 1 4 1 2 . Device 4 | 1 2 1 . . Storage 1 | . 1 . . . Processor . | . . . . . Hackware . | . . . . . Protection 3 | . 1 . 2 . Artifact . | . . . . . Weapon 14 | . 6 1 6 1 Energy Gun . | . . . . . Energy Cannon 2 | . 1 . 1 . Ballistic Gun 5 | . 3 1 1 . Ballistic Cannon 2 | . . . 2 . Launcher 2 | . . . 1 1 Special Weapon 2 | . 2 . . . Impact Weapon . | . . . . . Slashing Weapon 1 | . . . 1 . Piercing Weapon . | . . . . . Special Melee Weapon . | . . . . . Unidentified Prototypes . | . . . . . Parts Lost 8 | . 1 . 1 6 Power . | . . . . . Propulsion 4 | . . . 1 3 Utility 2 | . . . . 2 Weapon 2 | . 1 . . 1 Highest Loss Streak 6 | . 1 . 1 6 To Critical Strikes . | . . . . . Average Backups 19 | 6 12 19 24 25 Power 3 | 1 1 3 4 3 Propulsion 3 | 4 3 3 3 3 Utility 5 | . 4 6 6 9 Weapon 6 | 1 2 5 9 9 Tool/Special . | . . . . . Unused Backups 25 | . 6 . 5 14 Power 6 | . 1 . 2 3 Propulsion 4 | . 3 . . 1 Utility 8 | . 2 . . 6 Weapon 6 | . . . 3 3 Tool/Special 1 | . . . . 1 Average Slot Usage (%) 99 | . 99 100 99 98 Engine 12 | . 14 14 11 11 Treads 22 | . 21 28 22 22 Leg 1 | . 4 . . . Wheel 7 | . 2 . 11 10 Device 9 | . 9 10 10 . Storage 12 | . 14 14 11 11 Protection 8 | . 4 3 10 21 Energy Cannon 4 | . 6 14 2 . Ballistic Gun 11 | . 21 14 3 . Ballistic Cannon 8 | . . . 14 21 Peak Build Rating 15 | 7 8 9 15 14 Average Rating 10 | 6 7 8 13 12 On Entrance 8 | 6 7 8 9 13 Naked Turns . | . . . . . Heaviest Build 96 | 14 90 90 96 96 Greatest Support 40 | 20 40 40 40 10 Greatest Overweight (x) 9 | . 8 2 9 9 Average Overweight (x) 5 | . 2 2 7 9 Largest Inventory Capacity 25 | 8 25 25 25 25 Average Capacity 23 | 8 22 25 25 25 Most Carried 25 | 6 18 20 25 25 Average Carried 19 | 6 12 19 24 24 Final Capacity 25 | 8 25 25 25 25 Final Carried 25 | 6 18 20 25 23 Class Distribution -------------------- 100% | Mutant Dominant Class ---------------- Mutant | -10/Materials Mutant | -10/Mines Mutant | -9/Materials Mutant | -9/Mines Resources | -11 -10 -10 -9 -9 ----------- Run | Yrd Mat Min Mat Min Matter Collected 1392 | 219 443 37 680 13 Remotely . | . . . . . Salvage Created 1701 | 19 557 53 1072 . Parts 97 | 3 35 4 55 . Haulers Intercepted 3 | . . . 3 . Recyclers Shooed 7 | 1 5 . 1 . Parts Field Recycled . | . . . . . Retrieved Matter . | . . . . . Parts Self-Destructed . | . . . . . Prevented . | . . . . . Kills | -11 -10 -10 -9 -9 ------- Run | Yrd Mat Min Mat Min Combat Hostiles Destroyed 34 | . 13 3 18 . Guns 10 | . 9 1 . . Cannons 21 | . 4 2 15 . AOE 3 | . . . 3 . Classes Destroyed 12 | 1 4 . 7 . Worker 1 | . . . 1 . Builder 2 | . . . 2 . Tunneler 1 | 1 . . . . Hauler 3 | . . . 3 . Recycler 2 | . . . 2 . Mechanic 1 | . . . 1 . Operator 2 | . 2 . . . Watcher 4 | . 2 . 2 . Swarmer 5 | . 2 3 . . Grunt 23 | . 11 . 12 . Duelist 1 | . . . 1 . Sentry 5 | . . . 5 . Best Kill Streak 4 | 1 3 3 4 . Combat Bots Only 3 | . 3 3 3 . Max Kills in Single Turn 2 | 1 1 1 2 . Gunslinging . | . . . . . Exploded 1 | . . . 1 . Melee . | . . . . . Uniques/NPCs Destroyed . | . . . . . Combat | -11 -10 -10 -9 -9 -------- Run | Yrd Mat Min Mat Min Hostile Shots Fired 192 | . 89 20 69 14 Missed 52 | . 20 5 26 1 Hits 140 | . 69 15 43 13 Melee 1 | . . . 1 . Projectile 139 | . 69 15 42 13 AOE 14 | . . . . 14 Critical Strikes 1 | . 1 . . . Damage Taken 2174 | . 804 118 639 613 Core 347 | . 123 16 84 124 Absorbed by Shields . | . . . . . Redirected to Shielding 227 | . 21 11 119 76 Regen/Repaired (Parts) 206 | . . . 206 . Core Remaining (%) 72 | 100 . 44 . . Volleys Fired 163 | 4 75 9 71 4 Largest 2 | 2 2 2 2 2 Hottest 100 | 40 100 80 80 63 Shots Fired 309 | 8 148 18 127 8 Gun 144 | 8 117 9 10 . Cannon 151 | . 29 9 106 7 Launcher 12 | . . . 11 1 Special 2 | . 2 . . . Kinetic 248 | 8 117 9 107 7 Thermal 49 | . 31 9 9 . Explosive 1 | . . . . 1 Electromagnetic 11 | . . . 11 . Robot Hit Streak 20 | 4 20 3 13 3 Robot Miss Streak 3 | 2 3 1 3 2 Penetration Max . | . . . . . Secondary Targets 2 | . 2 . . . Max Gunslinging Chain 1 | . 1 . . . Shots Hit Robots 203 | 5 102 9 83 4 Core Hits 83 | 1 40 3 37 2 Critical Kills . | . . . . . Critical Parts Destroyed . | . . . . . Critical Strikes 5 | . . . 5 . Blast 5 | . . . 5 . Melee Attacks 5 | . . . 5 . Impact . | . . . . . Slashing 5 | . . . 5 . Piercing . | . . . . . Sneak Attacks . | . . . . . Combat Hostiles . | . . . . . Follow-up Attacks . | . . . . . Damage Inflicted 2946 | 53 1101 127 1570 95 Guns 892 | 53 736 41 62 . Cannons 1823 | . 365 86 1277 95 Explosions 231 | . . . 231 . Melee . | . . . . . Ramming . | . . . . . Kinetic 2140 | 53 736 41 1215 95 Thermal 575 | . 365 86 124 . Explosive . | . . . . . Electromagnetic 231 | . . . 231 . Impact . | . . . . . Slashing . | . . . . . Piercing . | . . . . . Highest Corruption . | . . . . . Average Corruption . | . . . . . Corruption Purged . | . . . . . Corruption Blocked . | . . . . . Overload Shots . | . . . . . Overflow Damage 37 | . 7 . 30 . Projectiles 21 | . 7 . 14 . Explosions 16 | . . . 16 . Melee . | . . . . . Knockbacks 11 | . . . 10 1 Impact . | . . . . . Kinetic 9 | . . . 8 1 Secondary 2 | . . . 2 . Self-Inflicted Damage 29 | . . . 29 . Shots 3 | . . . 3 . Rammed . | . . . . . Targets Rammed . | . . . . . Kicked . | . . . . . Crushed . | . . . . . Highest Temperature 288 | . 288 180 114 . Average Temperature 70 | . 84 78 24 . Received Heat Transfer 636 | . 432 . 204 . Effects 1 | . 1 . . . Energy Bleed 1 | . 1 . . . Siege Activations . | . . . . . Martial Activations . | . . . . . Shielding Activations . | . . . . . Robots Disrupted . | . . . . . Combat Hostiles . | . . . . . Robots Corrupted . | . . . . . Combat Hostiles . | . . . . . Parts Fried 1 | . . . 1 . Impact Corruptions . | . . . . . Robots Melted . | . . . . . Combat Hostiles . | . . . . . Parts Melted 1 | . . . 1 . Heat Transferred 1221 | . 777 185 259 . Parts Sabotaged . | . . . . . Parts Stolen . | . . . . . Parts Stripped . | . . . . . Power Chain Reactions 1 | . . . 1 . Alert | -11 -10 -10 -9 -9 ------- Run | Yrd Mat Min Mat Min Maximum Alert Level 1 | . . . 1 . Low Security (%) 89 | 100 100 100 79 100 Level 1 10 | . . . 20 . Level 2 . | . . . . . Level 3 . | . . . . . Level 4 . | . . . . . Level 5 . | . . . . . High Security . | . . . . . Max Security . | . . . . . Peak Influence 391 | 5 84 76 391 150 Initial 150 | . . 16 . 150 Average 60 | 3 18 29 93 96 Influence Increases 1140 | 5 414 70 637 14 Destroy 0b10 Robot/C 680 | . 260 60 360 . Destroy 0b10 Robot/NC 80 | 5 20 . 55 . Destroy Leader 184 | . 64 10 110 . Successful Hack 64 | . 53 . 11 . Disable Machine 15 | . . . 15 . Destroy Structure 27 | . 2 . 11 14 Partial Spotted 15 | . . . 15 . Lose Combat Pursuer 75 | . 15 . 60 . Influence Decreases 1140 | 5 372 112 250 401 Entered New Map 263 | . . 26 . 237 Time Decay 795 | 5 354 86 240 110 Lost Part 74 | . 10 . 10 54 Purge Threat 8 | . 8 . . . Squads Dispatched 6 | . 4 . 2 . Investigation 1 | . 1 . . . Extermination . | . . . . . Reinforcement 5 | . 3 . 2 . Assault . | . . . . . Garrison . | . . . . . Intercept . | . . . . . Searches Triggered . | . . . . . Construction Impeded . | . . . . . Haulers Reinforced . | . . . . . Active Scanning Responses . | . . . . . Cargo Convoy Interrupts . | . . . . . Stealth | -11 -10 -10 -9 -9 --------- Run | Yrd Mat Min Mat Min Distress Signals 1 | . . . 1 . Communications Jammed . | . . . . . Distress Signals . | . . . . . Times Spotted 63 | . 30 3 28 2 Peak Tracking Total 5 | . 3 3 5 2 Tactical Retreats 5 | . 1 . 4 . Traps | -11 -10 -10 -9 -9 ------- Run | Yrd Mat Min Mat Min Traps Triggered 1 | . 1 . . . Indirectly . | . . . . . Trap Hack Attempts . | . . . . . Triggered . | . . . . . Disarmed . | . . . . . Reprogrammed . | . . . . . Reused . | . . . . . Traps Extracted . | . . . . . Installed . | . . . . . Triggered . | . . . . . Machines | -11 -10 -10 -9 -9 ---------- Run | Yrd Mat Min Mat Min Machines Disabled 1 | . . . 1 . Max in Single Turn 1 | . . . 1 . Machines Repaired . | . . . . . Machines Dismantled . | . . . . . Machines Sabotaged . | . . . . . Overloaded Fab Kills . | . . . . . Hacking | -11 -10 -10 -9 -9 --------- Run | Yrd Mat Min Mat Min Machines Accessed 16 | . 8 . 8 . Terminals 11 | . 6 . 5 . Fabricators . | . . . . . Repair Stations 2 | . . . 2 . Recycling Units 2 | . 2 . . . Scanalyzers 1 | . . . 1 . Garrison Access . | . . . . . Total Hacks 46 | . 21 . 25 . Successful 24 | . 9 . 15 . Failed 22 | . 12 . 10 . Catastrophic 6 | . 3 . 3 . Database Lockouts . | . . . . . Manual 21 | . 10 . 11 . Terminals 32 | . 17 . 15 . Fabricators . | . . . . . Repair Stations 8 | . . . 8 . Recycling Units 4 | . 4 . . . Scanalyzers 2 | . . . 2 . Garrison Access . | . . . . . Terminal Hacks 8 | . 4 . 4 . Robot Analysis 2 | . . . 2 . Prototype ID Bank 1 | . . . 1 . Branch Access Points 1 | . 1 . . . Unreport Threat 1 | . 1 . . . Locate Traps 3 | . 2 . 1 . Fabricator Hacks . | . . . . . Repair Station Hacks 8 | . . . 8 . Scan Component 4 | . . . 4 . Repair 4 | . . . 4 . Recycling Unit Hacks 1 | . 1 . . . Retrieve Components 1 | . 1 . . . Scanalyzer 1 | . . . 1 . Insert Component 1 | . . . 1 . Garrison Access Hacks . | . . . . . Unauthorized Hacks 6 | . 4 . 2 . Terminals 5 | . 3 . 2 . Botnet 5 | . 3 . 2 . Fabricators . | . . . . . Repair Stations . | . . . . . Recycling Units 1 | . 1 . . . Mask 1 | . 1 . . . Scanalyzers . | . . . . . Garrison Access . | . . . . . Data Cores Recovered . | . . . . . Used . | . . . . . Hacking Detections 14 | . 7 . 7 . Full Trace Events . | . . . . . Feedback Events . | . . . . . Feedback Blocked . | . . . . . Robot Schematics Acquired . | . . . . . Robots Built . | . . . . . Authchips . | . . . . . Time . | . . . . . Total Robot Build Rating . | . . . . . Part Schematics Acquired . | . . . . . Parts Built . | . . . . . Authchips . | . . . . . Time . | . . . . . Total Part Build Rating . | . . . . . Parts Repaired 4 | . . . 4 . Time 104 | . . . 104 . Parts Recycled . | . . . . . Recycled Matter . | . . . . . Retrieved Matter . | . . . . . Retrieved Components 9 | . 9 . . . Parts Scanalyzed 1 | . . . 1 . Part Schematics Acquired . | . . . . . Parts Damaged . | . . . . . Bothacking | -11 -10 -10 -9 -9 ------------ Run | Yrd Mat Min Mat Min Used RIF Installer . | . . . . . Robots Hacked . | . . . . . Non-combat . | . . . . . Combat . | . . . . . Robot Hacks Applied . | . . . . . Relay Couplers Released . | . . . . . Fabnet Peak Effective % . | . . . . . Robots Rewired . | . . . . . Allies Hacked . | . . . . . Hacks Repelled . | . . . . . Allies | -11 -10 -10 -9 -9 -------- Run | Yrd Mat Min Mat Min Total Allies . | . . . . . Largest Group . | . . . . . Highest-Rated Group . | . . . . . Highest-Rated Ally . | . . . . . Total Orders . | . . . . . Ally Attacks . | . . . . . Total Damage . | . . . . . Kills . | . . . . . Allies Corrupted . | . . . . . Allies Melted . | . . . . . Intel | -11 -10 -10 -9 -9 ------- Run | Yrd Mat Min Mat Min Active Infowar (turns) 2491 | 8 1073 193 1217 . Sensors 6 | . . 4 2 . Structural 1346 | . 534 . 812 . Seismic 1951 | 8 539 189 1215 . Robot Analysis Total 2 | . . . 2 . Derelict Logs Recovered 1 | . . . . 1 Drone Launches . | . . . . . Drone Recoveries . | . . . . . Exploration | -11 -10 -10 -9 -9 ------------- Run | Yrd Mat Min Mat Min Turns Passed 4189 | 26 1625 252 2053 233 Spaces Moved 1302 | 12 541 69 583 97 Core . | . . . . . Treads 495 | . 297 69 129 . Legs 130 | 12 118 . . . Wheels 677 | . 126 . 454 97 Hover . | . . . . . Flight . | . . . . . Fastest Speed 120 | 120 120 320 215 215 Average Speed 257 | 120 248 320 268 215 Slowest Speed 480 | 120 320 320 480 215 Overloaded Moves . | . . . . . Propulsion Burnouts . | . . . . . Robots Hopped . | . . . . . Potential Cave-ins . | . . . . . Cave-ins Triggered . | . . . . . Exploration Rate (%) 40 | 2 94 28 49 31 Regions Visited 4 Branch Regions 2 Pre-discovered Areas . | . . . . . Known Exits Taken 1 | . 1 . . . Unknown Exits Taken 3 | 1 . 1 1 . Scrap Searched 1 | . . . . 1 Spaces Dug 4 | . 2 . 2 . Terrain Destroyed 27 | . 2 . 9 16 Melee 2 | . . . 2 . Projectile 2 | . 2 . . . AOE 23 | . . . 7 16 Terrain Rammed . | . . . . . Walls Destroyed . | . . . . . Machines Disabled . | . . . . . Actions | -11 -10 -10 -9 -9 --------- Run | Yrd Mat Min Mat Min Total 1837 | 16 690 84 935 112 Wait 259 | . 31 2 219 7 Move 1298 | 11 540 68 582 97 Hop . | . . . . . Pick Up 36 | . 16 1 19 . Fast Attach 4 | 1 . . 3 . Attach 6 | . 1 . 3 2 Detach . | . . . . . Swap 41 | . 18 4 17 2 Drop 25 | . 9 . 16 . Fire 163 | 4 75 9 71 4 Melee 5 | . . . 5 . Ram . | . . . . . Kick . | . . . . . Crush . | . . . . . Escape Stasis . | . . . . . Rewire . | . . . . . Trap . | . . . . . Miscellaneous . | . . . . . Route ------- -11/Scrapyard -10/Materials (discovered 6 exits: *Mat x3 / *Min x2 / [Sub]) -10/Mines -9/Materials (discovered 2 exits: [*Mat] / [*Min]) -9/Mines (discovered 1 exit: [*Mat]) History --------- Turn | Location | Event 13 | -11/Scrapyard | Discovered new exit (range 3) 27 | -11/Scrapyard | Entered Materials 236 | -10/Materials | Discovered new exit (range 16) 308 | -10/Materials | Build established: Mutant 351 | -10/Materials | Discovered new exit (range 9) 433 | -10/Materials | Discovered new exit (range 10) 822 | -10/Materials | Discovered new exit (range 15) 1141 | -10/Materials | Discovered new exit (range 13) 1141 | -10/Materials | Discovered new exit (range 16) 1399 | -10/Materials | Identified exit to Mines 1652 | -10/Materials | Entered Mines 1654 | -10/Mines | Core integrity fell below 50% 1657 | -10/Mines | Met a Derelict bent on vengeance 1863 | -10/Mines | Discovered new exit (range 10) 1904 | -10/Mines | Entered Materials 1904 | -9/Materials | Evolved 2 slots: Propulsion x1, Utility x1 2000 | -9/Materials | Repaired Propulsion Shielding 3422 | -9/Materials | Repaired Propulsion Shielding 3450 | -9/Materials | Repaired Lgt. Cannon 3477 | -9/Materials | Repaired Weapon Shielding 3612 | -9/Materials | Discovered new exit (range 16) 3907 | -9/Materials | Discovered new exit (range 9) 3957 | -9/Materials | Entered Mines 4014 | -9/Mines | Learned Materials stockpile data 4049 | -9/Mines | Discovered new exit (range 14) 4075 | -9/Mines | Received a Rocket Launcher from a helpful Derelict 4164 | -9/Mines | Assembled infested the area 4188 | -9/Mines | Core integrity fell below 50% 4190 | -9/Mines | Self-destructed Last Messages --------------- say!" 04075_ KN-V2V(g): "Would you like a rocket launcher? I know I would if I were you, so I'm going to lend you mine." 04075_ KN-V2V(g) slips back into the shadows. 04164_ ALERT: Infestation in the mines, dispatching Demolisher response squad. 04164_ K-01 Serf collects debris. 04171_ C-30 ARC bursts open, deploying its payload. 04171_ D-53 Grenadier unfolds itself. 04176_ The unstable cave ceiling collapses. 04177_ Propulsion Shielding destroyed. 04182_ The unstable cave ceiling collapses. 04184_ Wheel destroyed. 04187_ The unstable cave ceiling collapses. 04187_ Weapon Shielding destroyed. 04189_ Lgt. Cannon destroyed. 04190_ The unstable cave ceiling collapses. 04190_ Lgt. Treads destroyed. Map ----- +----------------------------------------------------+ | | | | | | | | | | | | | | | | | | | ?????????????????????????????????????????????????? | | ?????????????????????????????????????????????????? | | ?????????????????????????????????????????????????? | | ??????????????????????????????????????####???????? | | ?????????????????????????????????????## ##??????? | | ????????????????????????????????????## ###????? | | ????????????????????###????????????## ####?? | | ???????????????????## ??????????## ##? | | ??????????????????## ??????????# #? | | ??????????????????# ??????????# #? | | ??????????????????# #########?## ## ##? | | ???????????????????# # ##### ##### ### | | ????????????????????# # #???## | | ????????????????????# # # ###### | | ????????????????????# d " | | ????????????????????# d % %" | | ????????????????????# @ ###### ## | | ????????????????????# #######??## ##? | | ??????????????????# #???????## #### | | ???????????????? ##???????# ### | | ??????????????# ###????????# ## | | ?????????????# ######??????????## | | ????????????# #?????????????????# < | | ???????????? #??????????????????## ] | | ????????????? ????????????????????#### | | ????????????? ## ???????????????########### | | ??????????????#??## ???????????????# #### | | ??????????????????#????????????????# #??## | | ???????????????????????????????????# #???# | | ???????????????????????????????????# """ #???? | | ???????????????????????????????????# """ ##### | | ???????????????????????????????????# """ [%% | | ???????????????????????????????????# ####% | | ???????????????????????????????????###########??#! | | ????????????????????????????????????????????????# | | ??????????????????????????????????????##???????## | | ????????????????????????????????????### ?????## | | ???????????????????????????????????## ##### | | ???????????????????????????????????# | | ???????????????????????????? | | ?????????????????????????????# ####### | +----------------------------------------------------+ Best States ------------- Heat Dissipation 28 Energy Generation 12 Energy Capacity 265 Matter Stores 300 Matter Capacity 300 Sight Range 16 Terrain Scan Density 10 Propulsion Shielding 33 Weapon Shielding 33 Evasion (%) 55 Recoil Reduction 2 Item Schematics ----------------- None Robot Schematics ------------------ None Fabricated ------------ Nothing Repaired ---------- Propulsion Shielding | 36% | -9/Materials Propulsion Shielding | 12% | -9/Materials Lgt. Cannon | 21% | -9/Materials Weapon Shielding | 28% | -9/Materials Alien Tech Used ----------------- None Achievements -------------- None Challenges ------------ None Game ------ Seed LightRagnarokTendrils Manual? 0 Play Time 00:32:26 Cumulative 64.7 hours Start 2025.07.27 @ 15:25:57 End 2025.07.27 @ 15:55:45 Sessions 1 Manual Loads 0 Difficulty Rogue Special Mode None Game No. 48 Rogue 47 Adventurer 0 Explorer 1 Win Type - Total 2 Types 2/0/0/0/0/0/0/0/0/0 Lore% 38 Gallery% 32 Achievement% 30 Wizard Run 0 Options --------- Layout 2 ASCII 0 Keyboard 0 Movement Numpad Keybinds 0 Fullscreen 1 Font 32/SmallcapsGlow Map View 50x44 Zoom Use 0% Tactical HUD 1 Map Filters NONE Filters NONE Steam 1 RUN: afc51873-3e3e-4c56-b2f4-24e8a4cdb553